[Event "*** Titled Tuesday Blitz"]
[Site "Chess.com"]
[Date "2019.06.04"]
[Round "3"]
[White "IMDT02"]
[Black "DmitryAnikonov"]
[Result "1-0"]
[WhiteElo "2490"]
[BlackElo "2666"]
[TimeControl "180+2"]
[EndTime "13:40:00 PDT"]
[Termination "IMDT02 won by checkmate"]

1. d4 {[%clk 0:03:01.9]} 1... g6 {[%clk 0:02:59.4]} 2. Bf4 {[%clk 0:03:02]} 2...
Bg7 {[%clk 0:03:00.7]} 3. e3 {[%clk 0:03:03.4]} 3... d6 {[%clk 0:03:02.1]} 4.
Nf3 {[%clk 0:03:04.3]} 4... Nc6 {[%clk 0:03:02.5]} 5. h3 {[%clk 0:03:03.9]} 5...
e5 {[%clk 0:03:03.5]} 6. Bh2 {[%clk 0:03:03.1]} 6... Nge7 {[%clk 0:03:04.3]} 7.
c3 {[%clk 0:03:03.6]} 7... O-O {[%clk 0:03:05.4]} 8. Be2 {[%clk 0:03:05.1]} 8...
f5 {[%clk 0:03:06.5]} 9. dxe5 {[%clk 0:02:57.9]} 9... dxe5 {[%clk 0:03:06.9]}
10. Bc4+ {[%clk 0:02:56.6]} 10... Kh8 {[%clk 0:03:02.8]} 11. Qxd8 {[%clk
0:02:44.1]} 11... Rxd8 {[%clk 0:02:59.9]} 12. Ng5 {[%clk 0:02:45.6]} 12... Bf6
{[%clk 0:02:54.5]} 13. Nf7+ {[%clk 0:02:42.1]} 13... Kg7 {[%clk 0:02:55.3]} 14.
Nxd8 {[%clk 0:02:42.6]} 14... Nxd8 {[%clk 0:02:57.2]} 15. Nd2 {[%clk 0:02:39.9]}
15... Be6 {[%clk 0:02:51]} 16. O-O-O {[%clk 0:02:37.9]} 16... Kf7 {[%clk
0:02:41.6]} 17. Bg3 {[%clk 0:02:37.2]} 17... Bxc4 {[%clk 0:02:34.7]} 18. Nxc4
{[%clk 0:02:38.1]} 18... Ke6 {[%clk 0:02:36.2]} 19. f3 {[%clk 0:02:35.3]} 19...
Nf7 {[%clk 0:02:36.3]} 20. Rhe1 {[%clk 0:02:31.8]} 20... Nd6 {[%clk 0:02:26.3]}
21. Nxd6 {[%clk 0:02:24.3]} 21... cxd6 {[%clk 0:02:28.2]} 22. e4 {[%clk
0:02:25.8]} 22... Rc8 {[%clk 0:02:22.6]} 23. Rd3 {[%clk 0:02:21.6]} 23... Rc6
{[%clk 0:02:19.1]} 24. Red1 {[%clk 0:02:22.5]} 24... a6 {[%clk 0:02:19.1]} 25.
Kc2 {[%clk 0:02:22.9]} 25... Nc8 {[%clk 0:02:14.2]} 26. b3 {[%clk 0:02:21.3]}
26... Nb6 {[%clk 0:02:12.7]} 27. Bf2 {[%clk 0:02:18.7]} 27... Nd7 {[%clk
0:02:13.6]} 28. g4 {[%clk 0:02:05.6]} 28... fxe4 {[%clk 0:02:09.6]} 29. fxe4
{[%clk 0:02:07.5]} 29... Be7 {[%clk 0:02:10]} 30. Rf3 {[%clk 0:01:59.9]} 30...
Rc8 {[%clk 0:01:59.2]} 31. Rf1 {[%clk 0:01:54.7]} 31... Bg5 {[%clk 0:01:53.3]}
32. Be3 {[%clk 0:01:54]} 32... Be7 {[%clk 0:01:50.9]} 33. g5 {[%clk 0:01:51.1]}
33... d5 {[%clk 0:01:30.2]} 34. exd5+ {[%clk 0:01:50.6]} 34... Kxd5 {[%clk
0:01:32.1]} 35. Rf7 {[%clk 0:01:46.4]} 35... Ke6 {[%clk 0:01:32.3]} 36. Rxh7
{[%clk 0:01:43]} 36... Bc5 {[%clk 0:01:28.4]} 37. Bxc5 {[%clk 0:01:37.1]} 37...
Nxc5 {[%clk 0:01:30.3]} 38. Rg7 {[%clk 0:01:22.9]} 38... e4 {[%clk 0:01:17.9]}
39. Rxg6+ {[%clk 0:01:23.8]} 39... Ke5 {[%clk 0:01:18.6]} 40. Rgf6 {[%clk
0:01:23.4]} 40... e3 {[%clk 0:01:16.3]} 41. Re1 {[%clk 0:01:17.7]} 41... Ke4
{[%clk 0:01:12.7]} 42. Rf7 {[%clk 0:01:12.7]} 42... Re8 {[%clk 0:01:08.3]} 43.
g6 {[%clk 0:01:13.2]} 43... Nd3 {[%clk 0:01:05.6]} 44. Rg1 {[%clk 0:00:25.3]}
44... Ne5 {[%clk 0:00:37.7]} 45. Rff1 {[%clk 0:00:23]} 45... e2 {[%clk
0:00:25.4]} 46. Re1 {[%clk 0:00:23.4]} 46... Kf3 {[%clk 0:00:26.1]} 47. g7
{[%clk 0:00:24.9]} 47... Rg8 {[%clk 0:00:26.8]} 48. h4 {[%clk 0:00:18.8]} 48...
Kf2 {[%clk 0:00:27.2]} 49. h5 {[%clk 0:00:15.1]} 49... Nf3 {[%clk 0:00:26.9]}
50. Rxe2+ {[%clk 0:00:16.2]} 50... Kxg1 {[%clk 0:00:15.1]} 51. h6 {[%clk
0:00:16.8]} 51... Ng5 {[%clk 0:00:15.2]} 52. Re5 {[%clk 0:00:15.5]} 52... Nh7
{[%clk 0:00:16]} 53. Re7 {[%clk 0:00:13.5]} 53... b5 {[%clk 0:00:16.7]} 54. Ra7
{[%clk 0:00:14.5]} 54... Kf2 {[%clk 0:00:13.9]} 55. Rxa6 {[%clk 0:00:15.9]}
55... Rb8 {[%clk 0:00:15.4]} 56. Rd6 {[%clk 0:00:14.8]} 56... Ke3 {[%clk
0:00:14.8]} 57. b4 {[%clk 0:00:14.2]} 57... Ke4 {[%clk 0:00:15.6]} 58. Kb3
{[%clk 0:00:15.2]} 58... Ke5 {[%clk 0:00:16.7]} 59. Rd4 {[%clk 0:00:16.6]} 59...
Nf6 {[%clk 0:00:17.7]} 60. a4 {[%clk 0:00:16.8]} 60... bxa4+ {[%clk 0:00:18.9]}
61. Kxa4 {[%clk 0:00:18.7]} 61... Ra8+ {[%clk 0:00:20.8]} 62. Kb3 {[%clk
0:00:20.1]} 62... Rb8 {[%clk 0:00:22.1]} 63. Rh4 {[%clk 0:00:21.1]} 63... Nh7
{[%clk 0:00:20.6]} 64. c4 {[%clk 0:00:22.4]} 64... Kf6 {[%clk 0:00:21.4]} 65. b5
{[%clk 0:00:23.4]} 65... Kg5 {[%clk 0:00:22.7]} 66. Rh2 {[%clk 0:00:24.2]} 66...
Kg6 {[%clk 0:00:21.3]} 67. Kb4 {[%clk 0:00:25.3]} 67... Kf7 {[%clk 0:00:22.7]}
68. c5 {[%clk 0:00:26.3]} 68... Kg8 {[%clk 0:00:24.1]} 69. b6 {[%clk 0:00:27.6]}
69... Nf6 {[%clk 0:00:25.2]} 70. Kb5 {[%clk 0:00:26.7]} 70... Kh7 {[%clk
0:00:26.7]} 71. c6 {[%clk 0:00:27.5]} 71... Nd5 {[%clk 0:00:26.5]} 72. b7 {[%clk
0:00:27.2]} 72... Re8 {[%clk 0:00:22.2]} 73. Kc5 {[%clk 0:00:26.9]} 73... Nc7
{[%clk 0:00:19.2]} 74. Rd2 {[%clk 0:00:27.5]} 74... Na6+ {[%clk 0:00:12]} 75.
Kb6 {[%clk 0:00:28.1]} 75... Nb4 {[%clk 0:00:12.2]} 76. Rd6 {[%clk 0:00:23.9]}
76... Re6 {[%clk 0:00:13.7]} 77. Rxe6 {[%clk 0:00:25]} 77... Nd5+ {[%clk
0:00:13]} 78. Kc5 {[%clk 0:00:24.7]} 78... Nc7 {[%clk 0:00:11.5]} 79. g8=Q+
{[%clk 0:00:25.8]} 79... Kxg8 {[%clk 0:00:11.2]} 80. b8=Q+ {[%clk 0:00:27.2]}
80... Kh7 {[%clk 0:00:11.5]} 81. Qxc7+ {[%clk 0:00:28.5]} 81... Kg8 {[%clk
0:00:13]} 82. Re8# {[%clk 0:00:30]} 1-0

[Event "*** Titled Tuesday Blitz"]
[Site "Chess.com"]
[Date "2019.06.04"]
[Round "3"]
[White "Siemba"]
[Black "RU_B9"]
[Result "1/2-1/2"]
[WhiteElo "2087"]
[BlackElo "2065"]
[TimeControl "180+2"]
[EndTime "13:40:42 PDT"]
[Termination "Game drawn by repetition"]

1. e4 {[%clk 0:02:06.5]} 1... c5 {[%clk 0:02:57.3]} 2. Nf3 {[%clk 0:01:48.9]}
2... g6 {[%clk 0:02:57.6]} 3. d4 {[%clk 0:01:38.6]} 3... cxd4 {[%clk 0:02:59.5]}
4. Nxd4 {[%clk 0:01:40.5]} 4... Bg7 {[%clk 0:02:59.7]} 5. c4 {[%clk 0:01:36.6]}
5... Nc6 {[%clk 0:03:00.7]} 6. Be3 {[%clk 0:01:35.4]} 6... Nf6 {[%clk
0:03:01.1]} 7. Nc3 {[%clk 0:01:36.6]} 7... d6 {[%clk 0:03:01]} 8. Be2 {[%clk
0:01:37.4]} 8... O-O {[%clk 0:03:01]} 9. f3 {[%clk 0:01:36.4]} 9... Bd7 {[%clk
0:02:58.8]} 10. Qd2 {[%clk 0:01:37.6]} 10... a6 {[%clk 0:02:48]} 11. O-O {[%clk
0:01:33.7]} 11... Qa5 {[%clk 0:02:42]} 12. Nxc6 {[%clk 0:01:16.1]} 12... bxc6
{[%clk 0:02:42.4]} 13. Rfd1 {[%clk 0:01:02.5]} 13... Rfe8 {[%clk 0:02:31.3]} 14.
Bd4 {[%clk 0:00:58.4]} 14... c5 {[%clk 0:02:14.7]} 15. Be3 {[%clk 0:00:58]}
15... Ba4 {[%clk 0:02:13.3]} 16. b3 {[%clk 0:00:55.9]} 16... Bc6 {[%clk
0:02:13.5]} 17. Rac1 {[%clk 0:00:49.4]} 17... Rab8 {[%clk 0:02:04.8]} 18. Kh1
{[%clk 0:00:20]} 18... Qb4 {[%clk 0:01:59.1]} 19. Nd5 {[%clk 0:00:20.1]} 19...
Qxd2 {[%clk 0:01:55.8]} 20. Rxd2 {[%clk 0:00:21]} 20... Bxd5 {[%clk 0:01:48.8]}
21. cxd5 {[%clk 0:00:22.9]} 21... a5 {[%clk 0:01:46.9]} 22. Rc4 {[%clk 0:00:23]}
22... Rb4 {[%clk 0:01:46.2]} 23. Rdc2 {[%clk 0:00:22.1]} 23... Ra8 {[%clk
0:01:32.9]} 24. Bd2 {[%clk 0:00:19.9]} 24... Rxc4 {[%clk 0:01:28.9]} 25. Rxc4
{[%clk 0:00:14.7]} 25... e6 {[%clk 0:00:38]} 26. dxe6 {[%clk 0:00:14.3]} 26...
fxe6 {[%clk 0:00:39]} 27. Ra4 {[%clk 0:00:16.2]} 27... d5 {[%clk 0:00:38.3]} 28.
exd5 {[%clk 0:00:16.9]} 28... exd5 {[%clk 0:00:38.2]} 29. Rxa5 {[%clk
0:00:18.3]} 29... Rc8 {[%clk 0:00:24.3]} 30. Be3 {[%clk 0:00:13.7]} 30... c4
{[%clk 0:00:21.4]} 31. bxc4 {[%clk 0:00:14.2]} 31... dxc4 {[%clk 0:00:21.9]} 32.
Rc5 {[%clk 0:00:12]} 32... Rxc5 {[%clk 0:00:22.6]} 33. Bxc5 {[%clk 0:00:13.9]}
33... Nd7 {[%clk 0:00:22.7]} 34. Bxc4+ {[%clk 0:00:13.5]} 34... Kh8 {[%clk
0:00:20.4]} 35. Bd6 {[%clk 0:00:15.4]} 35... Bc3 {[%clk 0:00:20]} 36. a3 {[%clk
0:00:13]} 36... Nb6 {[%clk 0:00:20.6]} 37. Bb3 {[%clk 0:00:14.2]} 37... Kg7
{[%clk 0:00:21.4]} 38. Kg1 {[%clk 0:00:12.5]} 38... Kf6 {[%clk 0:00:21]} 39. Kf1
{[%clk 0:00:13.8]} 39... Bb2 {[%clk 0:00:14.7]} 40. Bb4 {[%clk 0:00:14.5]} 40...
Ke5 {[%clk 0:00:14.3]} 41. Ke2 {[%clk 0:00:14.5]} 41... Kd4 {[%clk 0:00:14.8]}
42. Bd2 {[%clk 0:00:13.8]} 42... Bxa3 {[%clk 0:00:11.5]} 43. Bg8 {[%clk
0:00:14.5]} 43... Nc4 {[%clk 0:00:09.3]} 44. Bxh7 {[%clk 0:00:13.3]} 44... Nxd2
{[%clk 0:00:09.4]} 45. Kxd2 {[%clk 0:00:15.2]} 45... g5 {[%clk 0:00:10.7]} 46.
Ke2 {[%clk 0:00:16.6]} 46... Ke5 {[%clk 0:00:11]} 47. g3 {[%clk 0:00:17.9]}
47... Be7 {[%clk 0:00:09.4]} 48. Kf2 {[%clk 0:00:19.1]} 48... Bc5+ {[%clk
0:00:10.2]} 49. Kg2 {[%clk 0:00:21]} 49... Kf6 {[%clk 0:00:10.1]} 50. Kh3 {[%clk
0:00:22.5]} 50... Bg1 {[%clk 0:00:10.3]} 51. Bc2 {[%clk 0:00:24.4]} 51... Ke5
{[%clk 0:00:09.9]} 52. Kg2 {[%clk 0:00:21.5]} 52... Bd4 {[%clk 0:00:10.4]} 53.
h3 {[%clk 0:00:14.2]} 53... Kf6 {[%clk 0:00:11.4]} 54. Kf1 {[%clk 0:00:14.6]}
54... Ke5 {[%clk 0:00:11.7]} 55. Ke2 {[%clk 0:00:14.9]} 55... Bb6 {[%clk
0:00:13.1]} 56. Ba4 {[%clk 0:00:10]} 56... Bc5 {[%clk 0:00:11.6]} 57. Bd7 {[%clk
0:00:08.4]} 57... Be7 {[%clk 0:00:10.6]} 58. Bc8 {[%clk 0:00:09.3]} 58... Bd8
{[%clk 0:00:10.5]} 59. Ke3 {[%clk 0:00:09.1]} 59... Be7 {[%clk 0:00:12]} 60. Kd3
{[%clk 0:00:10.6]} 60... Bd8 {[%clk 0:00:12]} 61. Ke3 {[%clk 0:00:12.2]} 61...
Bb6+ {[%clk 0:00:12.7]} 62. Ke2 {[%clk 0:00:13.2]} 62... Bd8 {[%clk 0:00:13.3]}
63. Bg4 {[%clk 0:00:14.1]} 63... Be7 {[%clk 0:00:12.7]} 64. Kd3 {[%clk
0:00:14.9]} 64... Bc5 {[%clk 0:00:13.3]} 65. h4 {[%clk 0:00:09.3]} 65... gxh4
{[%clk 0:00:13.2]} 66. f4+ {[%clk 0:00:10.1]} 66... Kf6 {[%clk 0:00:11.8]} 67.
gxh4 {[%clk 0:00:12]} 67... Bf2 {[%clk 0:00:08.9]} 68. h5 {[%clk 0:00:12.8]}
68... Bb6 {[%clk 0:00:06.8]} 69. Ke4 {[%clk 0:00:14.1]} 69... Bc5 {[%clk
0:00:04]} 70. Bf5 {[%clk 0:00:14.9]} 70... Bf8 {[%clk 0:00:05.3]} 71. Bd7 {[%clk
0:00:13.7]} 71... Bh6 {[%clk 0:00:06.6]} 72. f5 {[%clk 0:00:12.7]} 72... Bf8
{[%clk 0:00:07.6]} 73. Kd5 {[%clk 0:00:12.6]} 73... Bh6 {[%clk 0:00:09]} 74. Bc8
{[%clk 0:00:13.6]} 74... Kg5 {[%clk 0:00:10.2]} 75. Ke6 {[%clk 0:00:14.4]} 75...
Kxh5 {[%clk 0:00:10.9]} 76. f6 {[%clk 0:00:15.9]} 76... Kg5 {[%clk 0:00:10.7]}
77. f7 {[%clk 0:00:13.3]} 77... Bf8 {[%clk 0:00:10.9]} 78. Kd7 {[%clk
0:00:12.7]} 78... Kg6 {[%clk 0:00:12.8]} 79. Ke8 {[%clk 0:00:13]} 79... Kg7
{[%clk 0:00:14.4]} 80. Bf5 {[%clk 0:00:06.6]} 80... Bb4 {[%clk 0:00:16.3]} 81.
Be4 {[%clk 0:00:07.6]} 81... Bf8 {[%clk 0:00:16.8]} 82. Bd3 {[%clk 0:00:08.4]}
82... Bc5 {[%clk 0:00:15]} 83. Be4 {[%clk 0:00:10.3]} 83... Bf8 {[%clk
0:00:14.3]} 84. Bd3 {[%clk 0:00:12.2]} 84... Bc5 {[%clk 0:00:13.5]} 85. Be4
{[%clk 0:00:14.1]} 85... Bf8 {[%clk 0:00:13.2]} 1/2-1/2

[Event "*** Titled Tuesday Blitz"]
[Site "Chess.com"]
[Date "2019.06.04"]
[Round "3"]
[White "Oleg_Papayan"]
[Black "Filip_Covic"]
[Result "1/2-1/2"]
[WhiteElo "2541"]
[BlackElo "2358"]
[TimeControl "180+2"]
[EndTime "13:41:50 PDT"]
[Termination "Game drawn by stalemate"]

1. e4 {[%clk 0:03:01.9]} 1... c5 {[%clk 0:02:59.9]} 2. Nf3 {[%clk 0:03:02.4]}
2... d6 {[%clk 0:03:01.2]} 3. d4 {[%clk 0:03:03.4]} 3... cxd4 {[%clk 0:03:03.1]}
4. Nxd4 {[%clk 0:03:05.3]} 4... Nf6 {[%clk 0:03:04.2]} 5. Nc3 {[%clk 0:03:06.8]}
5... a6 {[%clk 0:03:05.6]} 6. a4 {[%clk 0:03:02.6]} 6... g6 {[%clk 0:03:02.4]}
7. Be2 {[%clk 0:03:01.8]} 7... Bg7 {[%clk 0:03:03.4]} 8. Be3 {[%clk 0:03:02.5]}
8... O-O {[%clk 0:03:04.2]} 9. O-O {[%clk 0:03:03.7]} 9... Nbd7 {[%clk
0:02:58.2]} 10. a5 {[%clk 0:03:03.6]} 10... Qc7 {[%clk 0:02:45.3]} 11. Ra3
{[%clk 0:02:47.3]} 11... Ne5 {[%clk 0:02:40.8]} 12. Re1 {[%clk 0:01:59.9]} 12...
Nc4 {[%clk 0:02:38.9]} 13. Bxc4 {[%clk 0:01:58.6]} 13... Qxc4 {[%clk 0:02:40.7]}
14. Qd3 {[%clk 0:01:52.6]} 14... Qxd3 {[%clk 0:02:37.1]} 15. cxd3 {[%clk
0:01:54.5]} 15... Ng4 {[%clk 0:02:37.7]} 16. Nd5 {[%clk 0:01:51.1]} 16... e6
{[%clk 0:02:27.1]} 17. Nb6 {[%clk 0:01:49.8]} 17... Rb8 {[%clk 0:02:23.7]} 18.
Nc2 {[%clk 0:01:50.9]} 18... Nxe3 {[%clk 0:02:22.8]} 19. Nxe3 {[%clk 0:01:52.8]}
19... Bxb2 {[%clk 0:02:22]} 20. Rb3 {[%clk 0:01:54.2]} 20... Bd4 {[%clk
0:02:23.1]} 21. Nec4 {[%clk 0:01:54.7]} 21... d5 {[%clk 0:02:11.7]} 22. exd5
{[%clk 0:01:55.1]} 22... exd5 {[%clk 0:02:13.6]} 23. Nxd5 {[%clk 0:01:55.3]}
23... Be6 {[%clk 0:02:14.4]} 24. Nf4 {[%clk 0:01:44.3]} 24... Bd7 {[%clk
0:01:53.4]} 25. Nd5 {[%clk 0:01:43.3]} 25... Be6 {[%clk 0:01:40.3]} 26. Nf4
{[%clk 0:01:44.2]} 26... Bd7 {[%clk 0:01:40.3]} 27. Re4 {[%clk 0:01:40.4]} 27...
Bc5 {[%clk 0:01:28.2]} 28. d4 {[%clk 0:01:41.1]} 28... Bf5 {[%clk 0:01:24]} 29.
Re1 {[%clk 0:01:33.7]} 29... Bxd4 {[%clk 0:01:23.6]} 30. Nd6 {[%clk 0:01:35.2]}
30... b5 {[%clk 0:01:18.5]} 31. Nxf5 {[%clk 0:01:33.4]} 31... gxf5 {[%clk
0:01:19.4]} 32. Nd5 {[%clk 0:01:35.3]} 32... Rfe8 {[%clk 0:01:14.5]} 33. Rd1
{[%clk 0:01:34.7]} 33... Bg7 {[%clk 0:01:12.8]} 34. g3 {[%clk 0:01:30.5]} 34...
Re2 {[%clk 0:00:50.3]} 35. Rf3 {[%clk 0:01:24]} 35... b4 {[%clk 0:00:38.8]} 36.
Rb1 {[%clk 0:01:17.7]} 36... Rb2 {[%clk 0:00:27.3]} 37. Rxb2 {[%clk 0:00:54.1]}
37... Bxb2 {[%clk 0:00:29.2]} 38. Rb3 {[%clk 0:00:56]} 38... Ba3 {[%clk
0:00:27.5]} 39. Nc7 {[%clk 0:00:52.7]} 39... Rb7 {[%clk 0:00:10.7]} 40. Nxa6
{[%clk 0:00:52.4]} 40... Rb5 {[%clk 0:00:11.8]} 41. Kg2 {[%clk 0:00:49.8]} 41...
Kg7 {[%clk 0:00:12.1]} 42. h4 {[%clk 0:00:49.7]} 42... Rxa5 {[%clk 0:00:07.5]}
43. Nxb4 {[%clk 0:00:48.5]} 43... Bxb4 {[%clk 0:00:08.9]} 44. Rxb4 {[%clk
0:00:50.4]} 44... Re5 {[%clk 0:00:09.9]} 45. Rb6 {[%clk 0:00:51.4]} 45... Rc5
{[%clk 0:00:11]} 46. Kf3 {[%clk 0:00:52.7]} 46... Rc4 {[%clk 0:00:12]} 47. Rb5
{[%clk 0:00:52.3]} 47... Kg6 {[%clk 0:00:12.8]} 48. Rb6+ {[%clk 0:00:53.2]}
48... f6 {[%clk 0:00:13.7]} 49. Rd6 {[%clk 0:00:54.1]} 49... Rb4 {[%clk
0:00:13.5]} 50. Rd3 {[%clk 0:00:55.1]} 50... Ra4 {[%clk 0:00:12.1]} 51. Re3
{[%clk 0:00:56.3]} 51... Rb4 {[%clk 0:00:12.5]} 52. Re7 {[%clk 0:00:57.5]} 52...
Rb3+ {[%clk 0:00:13.2]} 53. Kg2 {[%clk 0:00:58.6]} 53... Rb4 {[%clk 0:00:13.8]}
54. Rc7 {[%clk 0:00:59.3]} 54... Rb2 {[%clk 0:00:14.6]} 55. Rc4 {[%clk
0:00:59.4]} 55... Rb3 {[%clk 0:00:15.2]} 56. Rf4 {[%clk 0:01:00.7]} 56... Rc3
{[%clk 0:00:14.5]} 57. Kf1 {[%clk 0:01:02]} 57... Rb3 {[%clk 0:00:14.3]} 58. Ke2
{[%clk 0:01:03.5]} 58... Ra3 {[%clk 0:00:15.4]} 59. Kd2 {[%clk 0:01:04.9]} 59...
Rb3 {[%clk 0:00:15.9]} 60. Kc2 {[%clk 0:01:06.4]} 60... Ra3 {[%clk 0:00:17.2]}
61. Kb2 {[%clk 0:01:07.9]} 61... Rd3 {[%clk 0:00:18.4]} 62. Kc2 {[%clk
0:01:08.8]} 62... Ra3 {[%clk 0:00:19.7]} 63. Kd2 {[%clk 0:01:09.4]} 63... Rb3
{[%clk 0:00:20.5]} 64. Ke2 {[%clk 0:01:10.9]} 64... Ra3 {[%clk 0:00:21.5]} 65.
Rf3 {[%clk 0:01:12.4]} 65... Ra2+ {[%clk 0:00:21.8]} 66. Ke3 {[%clk 0:01:13.8]}
66... Ra4 {[%clk 0:00:23.1]} 67. Rf4 {[%clk 0:01:14.3]} 67... Ra5 {[%clk
0:00:24.3]} 68. Kd4 {[%clk 0:01:15.9]} 68... Rb5 {[%clk 0:00:25]} 69. Kc4 {[%clk
0:01:17.3]} 69... Re5 {[%clk 0:00:25.7]} 70. Rf3 {[%clk 0:01:17.7]} 70... Kh5
{[%clk 0:00:24.8]} 71. Rf4 {[%clk 0:01:11.9]} 71... Kg6 {[%clk 0:00:24.4]} 72.
Kd4 {[%clk 0:01:12.9]} 72... Ra5 {[%clk 0:00:23.3]} 73. Kd3 {[%clk 0:01:14.1]}
73... Re5 {[%clk 0:00:22.8]} 74. Rb4 {[%clk 0:01:11.3]} 74... Ra5 {[%clk
0:00:21]} 75. Kd4 {[%clk 0:01:12.5]} 75... Ra2 {[%clk 0:00:20.5]} 76. Ke3 {[%clk
0:01:13.8]} 76... Ra5 {[%clk 0:00:20]} 77. Kf4 {[%clk 0:01:15.2]} 77... Re5
{[%clk 0:00:20.8]} 78. Rd4 {[%clk 0:01:16.4]} 78... Rc5 {[%clk 0:00:20.6]} 79.
Rd8 {[%clk 0:01:13]} 79... Rc4+ {[%clk 0:00:21]} 80. Kf3 {[%clk 0:01:14.4]}
80... Ra4 {[%clk 0:00:22.3]} 81. Rg8+ {[%clk 0:01:15.6]} 81... Kf7 {[%clk
0:00:22.3]} 82. Rh8 {[%clk 0:01:17]} 82... Kg7 {[%clk 0:00:22.7]} 83. Rd8 {[%clk
0:01:17.8]} 83... Kg6 {[%clk 0:00:23.9]} 84. Rd3 {[%clk 0:01:18.2]} 84... Rb4
{[%clk 0:00:24.2]} 85. Ke3 {[%clk 0:01:19.2]} 85... Re4+ {[%clk 0:00:24.7]} 86.
Kf3 {[%clk 0:01:19.3]} 86... Rb4 {[%clk 0:00:26.6]} 87. Kg2 {[%clk 0:01:20.7]}
87... Ra4 {[%clk 0:00:27.2]} 88. f3 {[%clk 0:01:22.1]} 88... Rb4 {[%clk
0:00:28.1]} 89. Kh3 {[%clk 0:01:20.6]} 89... Ra4 {[%clk 0:00:29]} 90. Rd7 {[%clk
0:01:20.3]} 90... Rb4 {[%clk 0:00:28.6]} 91. Rd8 {[%clk 0:01:21.6]} 91... Ra4
{[%clk 0:00:28.5]} 92. Rd3 {[%clk 0:01:22.6]} 92... Rb4 {[%clk 0:00:28.8]} 93.
Ra3 {[%clk 0:01:24.1]} 93... Rc4 {[%clk 0:00:29.7]} 94. Ra5 {[%clk 0:01:25.1]}
94... Rb4 {[%clk 0:00:30.2]} 95. h5+ {[%clk 0:01:22.5]} 95... Kxh5 {[%clk
0:00:30.2]} 96. Rxf5+ {[%clk 0:01:23.4]} 96... Kg6 {[%clk 0:00:31.6]} 97. Rc5
{[%clk 0:01:24.8]} 97... Ra4 {[%clk 0:00:32.7]} 98. g4 {[%clk 0:01:24.5]} 98...
Rb4 {[%clk 0:00:33.9]} 99. Kg3 {[%clk 0:01:26]} 99... Ra4 {[%clk 0:00:34.3]}
100. Rc7 {[%clk 0:01:27.4]} 100... Ra3 {[%clk 0:00:31.5]} 101. Kf4 {[%clk
0:01:28.1]} 101... Ra4+ {[%clk 0:00:32.1]} 102. Kg3 {[%clk 0:01:29.5]} 102...
Ra3 {[%clk 0:00:33]} 103. Rc4 {[%clk 0:01:29.5]} 103... Rb3 {[%clk 0:00:33.2]}
104. Rf4 {[%clk 0:01:30.6]} 104... Rb6 {[%clk 0:00:26.7]} 105. Kh4 {[%clk
0:01:31.2]} 105... Rb1 {[%clk 0:00:26.2]} 106. Rf5 {[%clk 0:01:32.2]} 106...
Rh1+ {[%clk 0:00:26.6]} 107. Kg3 {[%clk 0:01:34.1]} 107... Rg1+ {[%clk
0:00:27.8]} 108. Kf2 {[%clk 0:01:35.2]} 108... Rc1 {[%clk 0:00:29.3]} 109. f4
{[%clk 0:01:36.7]} 109... Rc2+ {[%clk 0:00:29.1]} 110. Kg3 {[%clk 0:01:38.2]}
110... Rc3+ {[%clk 0:00:30.4]} 111. Kh4 {[%clk 0:01:39.7]} 111... Rc4 {[%clk
0:00:31]} 112. Kg3 {[%clk 0:01:40.4]} 112... Rc3+ {[%clk 0:00:31.5]} 113. Kf2
{[%clk 0:01:42.3]} 113... Rc4 {[%clk 0:00:27.7]} 114. Ke3 {[%clk 0:01:43.6]}
114... Rc3+ {[%clk 0:00:28.1]} 115. Ke4 {[%clk 0:01:45.1]} 115... Rg3 {[%clk
0:00:28.4]} 116. g5 {[%clk 0:01:36.3]} 116... fxg5 {[%clk 0:00:18.6]} 117. Rxg5+
{[%clk 0:01:31.8]} 117... Rxg5 {[%clk 0:00:18.9]} 118. fxg5 {[%clk 0:01:33.7]}
118... Kxg5 {[%clk 0:00:20.4]} 119. Kf3 {[%clk 0:01:35.6]} 119... Kh4 {[%clk
0:00:21.8]} 120. Kg2 {[%clk 0:01:37.5]} 120... Kg4 {[%clk 0:00:23.2]} 121. Kh1
{[%clk 0:01:39.4]} 121... h5 {[%clk 0:00:24.1]} 122. Kg1 {[%clk 0:01:41.3]}
122... h4 {[%clk 0:00:26]} 123. Kh1 {[%clk 0:01:43.2]} 123... h3 {[%clk
0:00:27.4]} 124. Kg1 {[%clk 0:01:45.1]} 124... Kg3 {[%clk 0:00:28.3]} 125. Kh1
{[%clk 0:01:47]} 125... h2 {[%clk 0:00:29.4]} 1/2-1/2